bitfinex/quotes_ETHUSD_20260227
["timestamp","ask_amount","ask_price","bid_price","bid_amount"]
[1772196557434,1.73119137,1957.2,1956.4,1.27785728]
[1772196557640,1.544,1957.1,1956.4,1.27785728]
[1772196557841,0.45385641,1956.8,1956.1,1.27805326]
[1772196559463,1.27766136,1956.7,1955.9,5.11221307]
[1772196559668,1.27766136,1956.7,1955.9,5.61598184]
[1772196560043,1.27758055,1956.9,1956.1,0.50376877]
[1772196561568,0.45385641,1956.8,1956.1,1.78176189]
[1772196561746,0.45385641,1956.8,1956.1,1.27799312]
[1772196561948,0.45385641,1956.8,1955.9,5.11261867]
[1772196562151,0.45385641,1956.8,1955.9,1.27818395]
[1772196563577,0.45385641,1956.8,1956.0,0.50376877]
[1772196563578,1.27764691,1956.8,1956.0,0.50376877]
[1772196564066,0.45385641,1956.7,1955.9,1.27818395]
[1772196564254,0.45385641,1956.7,1955.8,1.2781993]
[1772196564448,2.49357677,1956.6,1955.7,2.06576877]
[1772196564767,0.45385641,1956.4,1955.6,7.81968168]
[1772196564968,0.45385641,1956.4,1955.6,1.27838003]
[1772196566376,1.73177901,1956.3,1955.5,5.11362618]
[1772196566570,0.45385641,1956.2,1955.5,5.11362618]
[1772196566771,0.45385641,1956.2,1955.4,1.27847211]
[1772196567668,0.45385641,1956.2,1955.3,2.83857617]
[1772196567843,0.45385641,1956.2,1955.2,1.27860229]
[1772196568043,0.45385641,1956.2,1955.7,0.0011]
[1772196568267,0.45385641,1956.2,1955.2,1.27860229]
[1772196568452,0.45385641,1956.0,1955.2,1.27860229]
[1772196568664,0.45385641,1955.9,1955.2,1.27860229]
[1772196568860,1.73171369,1956.4,1955.6,20.02958877]
[1772196569050,1.73171369,1956.4,1955.6,0.50376877]
[1772196569371,2.81677728,1956.6,1955.7,0.50376877]
[1772196570568,3.27063369,1956.6,1955.8,1.2782493]
[1772196571945,0.45385641,1956.5,1955.6,3.73028503]
[1772196572163,0.45385641,1956.5,1955.6,1.27838003]
[1772196572576,1.27785728,1956.4,1955.6,10.365176]
[1772196572981,1.27785728,1956.4,1955.6,0.50376877]
[1772196573883,0.45385641,1956.3,1955.6,0.50376877]
[1772196574290,0.45385641,1956.3,1955.5,1.27954541]
[1772196574590,0.45385641,1956.1,1955.5,0.0011]
[1772196575790,0.45385641,1956.0,1955.5,0.0011]
[1772196576687,1.27796717,1956.3,1955.6,1.27838003]
[1772196576990,1.27796717,1956.3,1955.7,0.50376877]
[1772196578786,1.75584107,1956.3,1955.5,0.0011]
[1772196580181,1.77155818,1956.6,1955.5,0.48202469]
[1772196580588,1.77155818,1956.6,1955.7,0.48092469]
[1772196580886,0.001,1956.4,1955.8,1.2782493]
[1772196583076,0.49477942,1956.4,1955.8,1.2782493]
[1772196583993,0.001,1956.4,1955.9,0.48092469]
[1772196584991,0.001,1956.9,1956.1,0.48092469]
[1772196587006,0.001,1956.9,1956.2,1.27798793]
[1772196587209,0.001,1956.9,1956.2,1.75891262]
[1772196587410,0.49477942,1956.9,1956.2,1.27798793]
[1772196589483,1.77234521,1956.9,1956.2,1.27798793]
[1772196589679,0.49377942,1956.8,1956.2,1.27798793]
[1772196590096,0.49377942,1956.8,1956.0,5.11233303]
[1772196590795,0.49377942,1956.8,1955.7,1.27831466]
[1772196591978,0.49377942,1956.6,1955.8,0.48092469]
[1772196592293,1.77141977,1956.8,1955.8,0.48092469]
[1772196592498,0.49377942,1956.7,1955.8,0.48092469]
[1772196593088,0.49377942,1956.7,1955.8,0.48202469]
[1772196593799,0.49377942,1956.7,1955.8,0.0011]
[1772196594304,0.49377942,1956.5,1955.8,0.0011]
[1772196596217,1.27785728,1956.4,1955.8,0.0011]
[1772196596710,0.49377942,1956.5,1955.8,0.0011]
[1772196597209,1.77157292,1956.5,1955.8,0.48202469]
[1772196598409,0.49377942,1956.4,1955.8,1.27934594]
[1772196599503,0.49377942,1956.4,1955.8,0.0011]
[1772196599704,0.49377942,1956.4,1955.8,1.27934385]
[1772196600409,1.77242281,1956.8,1956.0,0.48092469]
[1772196600611,1.77242281,1956.8,1956.2,0.48092469]
[1772196600612,0.001,1956.8,1956.2,0.48092469]
[1772196600982,0.001,1956.8,1955.9,0.48092469]
[1772196600983,1.77238218,1956.8,1955.9,0.48092469]
[1772196601183,0.49377942,1956.7,1955.8,1.5541]
[1772196601404,0.49377942,1956.7,1955.8,0.48202469]
[1772196601911,0.001,1956.8,1956.0,0.48092469]
[1772196602114,1.27859748,1956.8,1956.0,0.48092469]
[1772196602321,1.27859748,1956.8,1956.1,1.27805326]
[1772196602615,0.001,1956.8,1956.1,1.75897795]
[1772196603631,0.49477942,1956.8,1956.1,1.27805326]
[1772196603908,0.49477942,1956.8,1956.0,1.27807199]
[1772196604312,0.49377942,1956.6,1956.0,1.27807199]
[1772196605102,0.49377942,1956.6,1955.9,5.11260514]
[1772196605103,0.49377942,1956.6,1955.9,1.27818395]
[1772196605425,0.49377942,1956.6,1955.8,1.2793493]
[1772196605796,0.49377942,1956.6,1955.8,1.76027399]
[1772196606018,1.27859607,1956.8,1955.9,0.48092469]
[1772196606322,1.77240075,1956.8,1956.0,1.2781186]
[1772196606913,1.77240075,1956.8,1956.2,0.0011]
[1772196607122,0.001,1956.7,1956.2,0.0011]
[1772196609519,0.49477942,1956.8,1956.2,0.0011]
[1772196610107,0.001,1956.8,1956.2,0.49164958]
[1772196610343,5.10912177,1957.3,1956.2,0.49164958]
[1772196610344,0.47837026,1957.3,1956.4,0.49054958]
[1772196610540,0.47837026,1957.3,1956.6,0.49054958]
[1772196610712,1.75654659,1957.5,1956.6,0.49054958]
[1772196611113,0.47937026,1957.5,1956.6,0.49054958]
[1772196611429,1.75651972,1957.5,1956.6,0.49054958]
[1772196611648,0.47837026,1957.4,1956.5,2.38379197]
[1772196612435,0.47837026,1957.4,1956.5,2.87434155]
[1772196612605,1.75563996,1957.3,1956.5,2.87434155]
[1772196612808,0.47837026,1957.2,1956.5,1.27779197]
[1772196613134,0.47837026,1957.2,1956.3,5.11160821]
[1772196614137,0.47837026,1957.2,1956.2,1.27903495]
[1772196614434,0.47837026,1956.7,1956.2,0.0011]
[1772196614635,0.47837026,1956.5,1956.0,0.0011]
[1772196615839,1.27772666,1956.6,1956.0,0.0011]
[1772196616344,0.47837026,1956.9,1956.0,0.49164958]
[1772196616516,1.75594288,1956.9,1956.1,23.22724226]
[1772196616719,1.75594288,1956.9,1956.1,1.27805326]
[1772196617044,0.47837026,1956.9,1956.2,6.500044]
[1772196617232,0.47837026,1956.9,1956.2,0.49054958]
[1772196617446,1.27738028,1957.2,1956.2,0.49054958]
[1772196617622,1.75575054,1957.2,1956.2,2.27125749]
[1772196618017,1.75575054,1957.2,1956.4,19.446422]
[1772196618218,0.47937026,1957.5,1956.5,1.78070791]
[1772196618418,1.75651514,1957.5,1956.7,2.84379]
[1772196618647,1.75651514,1957.5,1956.8,1.27759607]
[1772196618843,1.75651571,1957.5,1956.8,1.27759607]
[1772196619051,0.47937026,1957.5,1956.8,1.27759607]
[1772196619738,0.001,1957.5,1956.8,1.27759607]
[1772196620050,0.001,1957.5,1956.8,1.76814565]
[1772196620947,0.001,1957.5,1957.0,20.63098358]
[1772196621210,0.001,1957.5,1957.0,0.49054958]
[1772196621465,0.001,1957.8,1957.2,0.49054958]
[1772196621749,0.001,1957.8,1957.4,0.49054958]
[1772196622321,0.47837026,1958.4,1957.5,27.116669]
[1772196622520,0.47837026,1958.4,1957.5,2.03854958]
[1772196622725,0.47837026,1958.4,1957.6,10.965761]
[1772196623322,1.75495854,1958.4,1957.7,1.27700873]
[1772196623545,1.75492702,1958.4,1957.7,1.27700873]
[1772196624048,1.75493193,1958.4,1957.7,1.27700873]
[1772196624216,0.47837026,1958.3,1957.6,1.27702246]
[1772196624422,0.47837026,1958.3,1957.5,2.82510247]
[1772196624838,0.47837026,1958.1,1957.2,5.10932577]
[1772196625034,0.47837026,1958.1,1957.2,1.27733496]
[1772196626556,0.47837026,1957.9,1957.2,1.27733496]
[1772196628549,0.47837026,1957.9,1957.1,5.10945889]
[1772196628782,1.75528784,1957.9,1957.1,5.10945889]
[1772196629646,0.47837026,1957.9,1957.1,5.60000847]
[1772196630070,0.47837026,1958.4,1957.3,0.49054958]
[1772196630269,0.47837026,1958.4,1957.1,5.10945889]
[1772196630473,0.47837026,1958.4,1957.0,1.76794981]
[1772196630474,0.47837026,1958.0,1956.8,1.27759607]
[1772196630687,0.47837026,1957.7,1957.0,1.2774655]
[1772196631242,0.47837026,1957.7,1956.9,1.27749168]
[1772196633382,0.47837026,1957.5,1956.9,1.27749168]
[1772196635573,1.75556082,1957.5,1956.7,20.165826]
[1772196636074,0.001,1957.6,1956.7,0.49054958]
[1772196636254,0.001,1957.6,1957.0,21.86923358]
[1772196636455,0.001,1957.6,1957.1,15.623557]
[1772196637664,0.001,1957.6,1957.2,1.27733496]
[1772196638176,0.001,1957.6,1956.8,10.04733274]
[1772196638177,0.47937026,1957.6,1956.8,10.04733274]
[1772196638360,0.47937026,1957.6,1956.8,6.66038174]
[1772196638560,0.47937026,1957.6,1956.9,4.57]
[1772196639396,0.47937026,1957.6,1956.8,5.11038174]
[1772196639685,1.74824059,1957.5,1957.0,1.2774655]
[1772196640555,0.45780784,1957.4,1956.9,2.82849053]
[1772196643172,1.73593423,1957.6,1956.9,2.82849053]
[1772196645581,1.73593423,1957.6,1957.0,0.0011]
[1772196650580,0.45780784,1957.5,1957.0,0.0011]
[1772196650786,0.45780784,1957.5,1956.9,0.0011]
[1772196651678,0.45780784,1957.5,1956.9,1.278629]
[1772196651880,0.45780784,1957.3,1956.9,0.0011]
[1772196652600,1.73512224,1957.3,1956.9,0.0011]
[1772196652908,0.001,1957.6,1956.9,0.47834526]
[1772196653064,1.27809179,1957.6,1956.9,0.47834526]
[1772196653257,1.73589963,1957.6,1956.9,0.47834526]
[1772196654062,0.001,1957.6,1956.9,0.47834526]
[1772196654669,0.001,1957.6,1957.0,1.2774655]
[1772196656588,0.45880784,1957.6,1957.0,1.2774655]
[1772196658476,0.45880784,1957.6,1957.0,1.75471076]
[1772196659189,0.45780784,1957.5,1956.9,0.0011]
[1772196659486,1.96980784,1957.5,1957.1,0.0011]
[1772196659788,0.45780784,1957.4,1957.0,0.0011]
[1772196660017,0.45780784,1957.2,1957.0,0.0011]
[1772196660165,0.45780784,1957.2,1956.8,0.0011]
[1772196660371,0.45780784,1957.3,1956.8,0.0011]
[1772196661463,0.45780784,1957.5,1956.8,0.47834526]
[1772196661671,1.27807546,1957.6,1956.8,0.47834526]
[1772196661971,1.7358833,1957.6,1956.8,0.47834526]
[1772196662172,1.7358833,1957.6,1956.9,1.27753078]
[1772196662688,0.45880784,1957.6,1956.9,1.27753078]
[1772196662884,0.001,1957.6,1956.9,1.75477604]
[1772196663392,0.001,1957.6,1957.0,0.47724526]
[1772196663970,1.27809024,1957.6,1957.0,0.47724526]
[1772196664177,0.45880784,1957.6,1956.9,5.11003837]
[1772196665573,0.45880784,1957.6,1956.9,1.27753078]
[1772196666067,0.45880784,1957.6,1956.9,1.75477604]
[1772196666298,1.73592715,1957.6,1956.9,1.75477604]
[1772196666500,0.001,1957.6,1957.0,0.47724526]
[1772196666797,0.001,1957.6,1956.9,1.27753078]
[1772196667013,0.45880784,1957.6,1956.9,1.27753078]
[1772196667801,1.73589035,1957.6,1956.9,1.27753078]
[1772196668198,0.45880784,1957.6,1956.9,0.47724526]
[1772196668396,0.001,1957.6,1957.1,0.47724526]
[1772196669319,0.001,1957.6,1957.2,0.47724526]
[1772196670397,0.001,1957.6,1957.3,1.2772697]
[1772196671910,0.001,1957.5,1957.3,1.2772697]
[1772196672815,0.001,1957.5,1957.2,5.10907883]
[1772196673123,0.001,1957.6,1957.2,5.10907883]
[1772196673124,0.001,1957.7,1957.2,5.28007968]
[1772196673328,0.4990086,1958.1,1957.4,16.12467585]
[1772196673525,0.4990086,1958.1,1957.5,15.060675]
[1772196674029,1.77561752,1958.4,1957.4,0.17000085]
[1772196674208,0.4990086,1958.3,1957.5,1.556]
[1772196674409,0.4990086,1958.1,1957.3,1.2772697]
[1772196675706,0.4990086,1958.0,1957.0,1.2785655]
[1772196675912,0.4990086,1957.8,1957.0,0.0011]
[1772196676528,0.4990086,1957.6,1957.0,0.0011]
[1772196678115,0.4990086,1958.2,1957.3,0.1716386]
[1772196678313,0.4990086,1958.2,1957.2,2.069]
[1772196678722,0.4990086,1958.0,1957.3,1.2772697]
[1772196679733,0.4990086,1958.0,1957.2,1.2772845]
[1772196680750,0.4990086,1957.8,1957.0,1.2785655]
[1772196682034,0.4990086,1957.8,1957.0,1.45144655]
[1772196683418,0.4990086,1957.7,1957.0,1.2785655]
[1772196684749,0.4990086,1957.7,1957.1,0.0011]
[1772196684956,0.5000086,1957.7,1957.1,0.0011]
[1772196685660,0.4990086,1957.6,1957.1,0.0011]
[1772196686748,0.001,1957.7,1957.1,0.17516895]
[1772196687251,0.4990086,1958.1,1957.3,0.17335335]
[1772196687451,0.4990086,1958.1,1957.4,1.552]
[1772196687826,0.4990086,1958.1,1957.4,1.72563523]
[1772196690264,0.4990086,1957.9,1957.4,5.1087583]
[1772196690470,0.4990086,1957.9,1957.3,5.10892915]
[1772196691437,0.4990086,1957.9,1957.3,6.66092915]
[1772196691634,0.4990086,1958.2,1957.4,0.17402559]
[1772196692363,0.4990086,1958.9,1957.6,0.065536]
[1772196692580,0.828,1958.9,1957.5,3.0030031]
[1772196692861,0.4990086,1958.8,1957.5,3.0030031]
[1772196693053,0.4990086,1958.8,1957.6,1.551]
[1772196693250,0.4990086,1958.8,1957.6,1.72470407]
[1772196693430,0.4990086,1958.7,1957.6,1.72470407]
[1772196693638,0.4990086,1958.7,1957.6,0.17370407]
[1772196693837,0.4990086,1958.7,1957.6,1.72470407]
[1772196694138,0.4990086,1958.7,1957.9,1.27687828]
[1772196694379,0.4990086,1958.7,1957.9,1.45042436]
[1772196694865,0.4990086,1958.7,1958.0,1.551]
[1772196695082,0.4990086,1958.7,1958.0,1.7243899]
[1772196695738,7.59290341,1959.3,1958.1,0.1733899]
[1772196695739,0.4990086,1959.2,1958.1,0.1733899]
[1772196695945,0.4990086,1959.2,1958.3,0.17323551]
[1772196696147,0.001,1959.5,1958.6,2.95900368]
[1772196696373,0.001,1959.5,1958.6,4.51000368]
[1772196696578,0.001,1959.5,1958.7,0.47000799]
[1772196697492,0.5000086,1959.5,1958.7,0.47000799]
[1772196697675,0.001,1959.5,1958.7,0.47000799]
[1772196697877,0.5000086,1959.5,1958.7,0.47000799]
[1772196698390,0.48439411,1959.3,1958.5,1.2764871]
[1772196700193,0.47840872,1959.1,1958.5,1.2764871]
[1772196701883,0.47840872,1959.1,1958.3,1.27658342]
[1772196702199,0.47840872,1958.7,1957.9,1.27687828]
[1772196704195,1.75478809,1958.7,1957.9,1.73764416]
[1772196705386,0.47840872,1959.3,1958.2,2.23618682]
[1772196705602,0.47840872,1959.3,1958.2,0.46076588]
[1772196706297,0.47840872,1959.1,1958.3,1.27661747]
[1772196706605,1.75443975,1959.2,1958.4,0.46076588]
[1772196706805,0.47840872,1959.1,1958.4,0.46076588]
[1772196706979,0.47840872,1959.1,1958.3,2.30561747]
[1772196708403,1.2761613,1959.0,1958.3,2.30561747]
[1772196708603,0.001,1958.7,1958.3,2.30561747]
[1772196709106,0.001,1958.7,1958.3,2.76638335]
[1772196709614,0.001,1958.7,1958.4,27.47785]
[1772196709785,0.001,1958.7,1958.3,2.76638335]
[1772196710115,0.001,1958.7,1958.4,9.303149]
[1772196710913,0.001,1958.7,1958.5,1.2764871]
[1772196712422,1.75434704,1959.4,1958.5,1.73725298]
[1772196712623,1.75431257,1959.4,1958.7,25.74659988]
[1772196712791,0.47840872,1959.4,1958.8,1.2762916]
[1772196712992,0.001,1959.5,1958.8,3.51247842]
[1772196713493,0.001,1959.5,1958.8,1.73705748]
[1772196715114,0.001,1959.5,1958.9,0.46076588]
[1772196716203,0.001,1959.5,1959.0,1.557]
[1772196716804,0.001,1959.5,1959.1,1.27609616]
[1772196718227,0.001,1959.5,1959.2,0.46076588]
[1772196718946,0.001,1959.5,1959.3,1.2759659]
[1772196719909,0.47940872,1959.5,1959.1,1.561]
[1772196721520,0.47940872,1959.8,1959.2,0.46076588]
[1772196721724,0.47840872,1959.7,1959.1,2.83704456]
[1772196721924,0.001,1959.4,1959.1,2.83804456]
[1772196722343,0.001,1959.8,1959.2,28.29738088]
[1772196722520,0.001,1959.8,1959.2,0.46076588]
[1772196723206,1.27664287,1959.8,1959.2,0.46076588]
[1772196723427,1.27664287,1959.8,1959.3,1.2759659]
[1772196723633,0.47840872,1959.7,1959.3,1.563]
[1772196724844,1.27664287,1959.8,1959.3,1.563]
[1772196725140,1.75388338,1960.1,1959.3,2.02376588]
[1772196725342,0.47840872,1959.9,1959.0,1.27609616]
[1772196725540,0.47840872,1959.7,1959.0,1.27609616]
[1772196726641,0.47840872,1959.7,1959.1,2.02376588]
[1772196727535,0.47840872,1959.7,1959.2,1.27603103]
[1772196727938,0.47840872,1959.9,1959.3,0.46076588]
[1772196728845,0.47840872,1960.3,1959.5,0.46076588]
[1772196729026,0.47840872,1960.3,1959.6,2.02376588]
[1772196729661,0.47840872,1960.1,1959.6,2.83876768]
[1772196730062,0.47840872,1960.1,1959.5,5.1031971]
[1772196730063,0.47840872,1960.1,1959.3,2.23618682]
[1772196730226,0.47840872,1960.1,1959.4,2.83890078]
[1772196731654,1.75388991,1960.1,1959.4,2.83890078]
[1772196731854,1.74520892,1960.4,1959.5,0.4668927]
[1772196732057,0.4699109,1960.4,1959.6,1.77542094]
[1772196732365,0.4699109,1960.4,1959.7,0.4668927]
[1772196732536,1.74483567,1960.9,1960.0,0.4668927]
[1772196732856,1.74483567,1960.9,1960.1,1.563]
[1772196733635,1.74483567,1960.9,1960.2,1.27538006]
[1772196734063,1.74483567,1960.9,1960.2,1.74227276]
[1772196734743,1.74483567,1960.9,1959.9,1.77542094]
[1772196734744,0.4699109,1960.8,1960.0,1.27550366]
[1772196734939,0.4699109,1960.8,1959.9,1.562]
[1772196735668,0.4699109,1960.6,1960.0,1.2755102]
[1772196735971,0.4699109,1960.6,1959.7,1.27570546]
[1772196737043,0.4699109,1960.6,1959.4,1.27590078]
[1772196737241,0.4699109,1960.6,1959.5,1.561]
[1772196737670,0.4699109,1960.6,1959.6,0.4668927]
[1772196737851,0.4699109,1960.4,1959.7,1.27570546]
[1772196738337,0.4699109,1960.7,1959.8,0.4668927]
[1772196739041,0.4699109,1960.7,1959.9,0.4668927]
[1772196739240,1.74477066,1961.0,1960.1,0.4668927]
[1772196739846,0.4699109,1961.0,1960.2,1.27538006]
[1772196740052,1.74477393,1961.0,1960.2,1.27538006]
[1772196740447,1.74477393,1961.0,1960.2,1.74227276]
[1772196740448,1.7447817,1961.0,1960.2,1.74227276]
[1772196740654,0.4699109,1960.9,1960.2,1.74227276]
[1772196742964,1.74488167,1960.9,1960.2,1.74227276]
[1772196743966,1.74483783,1960.9,1960.2,1.74227276]
[1772196744462,0.4699109,1960.8,1959.8,1.27557528]
[1772196744980,0.4699109,1960.6,1959.8,1.74246798]
[1772196745348,0.4699109,1960.6,1959.6,2.83572618]
[1772196746472,0.4699109,1960.6,1959.7,11.482949]
[1772196747372,1.7450958,1960.5,1959.8,1.27674037]
[1772196747556,1.7450958,1960.5,1959.9,3.472]
[1772196747755,1.7460958,1960.5,1959.9,3.472]
[1772196748470,1.7460958,1960.5,1959.8,1.27674037]
[1772196749081,0.4699109,1960.4,1959.9,5.714006]
[1772196749490,0.4699109,1960.4,1960.0,1.2755102]
[1772196751499,0.001,1960.5,1959.8,5.57053521]
[1772196751791,0.001,1960.5,1959.9,9.811612]
[1772196752002,0.4699109,1960.4,1959.8,0.0011]
[1772196753691,0.4699109,1960.2,1959.3,0.0011]
[1772196753879,0.4699109,1960.2,1959.3,1.2770598]
[1772196755481,0.4699109,1960.2,1959.5,11.702925]
[1772196755898,0.4699109,1960.2,1959.7,2.054729]
[1772196756066,0.4699109,1960.2,1959.4,6.87882477]
[1772196756067,0.4699109,1960.1,1959.4,11.62269534]
[1772196756268,0.4699109,1960.4,1959.5,3.80331364]
[1772196756468,0.4699109,1960.4,1959.8,12.021141]
[1772196756889,0.001,1960.5,1959.9,1.562]
[1772196757067,0.001,1960.5,1960.1,25.390502]
[1772196757263,0.001,1960.5,1960.1,9.92485]
[1772196757697,0.001,1960.5,1960.1,9.703046]
[1772196757991,0.001,1960.5,1960.1,1.27539712]
[1772196759800,0.001,1960.5,1959.3,0.0011]
[1772196759801,0.48747126,1960.3,1959.3,0.0011]
[1772196760106,0.46580478,1959.7,1959.3,0.0011]
[1772196762071,1.27577056,1959.6,1959.3,0.0011]
[1772196762471,1.74157534,1959.6,1959.3,0.0011]
[1772196763500,0.46580478,1959.5,1959.3,0.0011]
[1772196764093,1.74167236,1959.5,1959.3,0.0011]
[1772196764613,0.46580478,1959.5,1959.3,0.0011]
[1772196765283,3.87190664,1959.8,1959.3,0.0011]
[1772196765485,0.46580478,1960.2,1959.4,20.052699]
[1772196765691,0.46580478,1960.1,1959.4,13.702376]
[1772196766216,1.74131498,1960.0,1959.5,2.83881627]
[1772196767586,0.46580478,1959.9,1959.5,1.563]
[1772196767781,0.46580478,1959.9,1959.3,1.27704169]
[1772196767782,0.46580478,1959.9,1959.6,1.05514964]
[1772196768288,1.27564037,1959.8,1959.5,1.446]
[1772196768803,1.27564037,1959.8,1959.5,1.564]
[1772196770112,1.27538006,1960.2,1959.5,1.564]
[1772196770286,1.27538006,1960.2,1959.5,3.3400518]
[1772196772208,1.74118484,1960.2,1959.5,3.3400518]
[1772196773116,0.46580478,1960.1,1959.5,2.8397936]
[1772196774623,1.2755102,1960.0,1959.5,2.8397936]
[1772196775594,0.46580478,1959.9,1959.5,1.565]
[1772196776492,1.2755102,1960.0,1959.5,1.565]
[1772196777727,0.46580478,1960.0,1959.4,0.0011]
[1772196777929,0.46580478,1960.0,1959.5,1.565]
[1772196779346,1.27644513,1960.1,1959.6,0.5002582]
[1772196780136,0.001,1960.1,1959.6,0.5002582]
[1772196780539,0.001,1960.1,1959.6,1.77602311]
[1772196783644,1.27511986,1960.6,1959.8,0.5002582]
[1772196783846,1.74089535,1960.7,1960.0,0.5002582]
[1772196784275,1.74089535,1960.7,1959.9,1.566]
[1772196784276,0.46580478,1960.9,1960.2,0.5002582]
[1772196784430,1.479,1961.6,1960.6,0.5002582]
[1772196784636,11.75943031,1962.3,1960.5,2.68865541]
[1772196784637,5.09693203,1962.0,1961.1,0.5002582]
[1772196784844,0.46580478,1961.9,1961.2,1.263]
[1772196785030,1.2741856,1962.1,1961.2,1.7632582]
[1772196785353,1.2741856,1962.1,1961.3,0.5002582]
[1772196786736,1.2741856,1962.1,1961.3,1.27460106]
[1772196787035,0.46580478,1962.7,1961.5,0.5002582]
[1772196787239,0.46580478,1962.7,1961.4,1.565]
[1772196787729,0.46580478,1962.7,1961.5,0.5002582]
[1772196788448,7.69073281,1963.0,1961.8,0.5002582]
[1772196788449,1.73936565,1963.0,1961.8,0.5002582]
[1772196788655,1.73936565,1963.0,1962.0,0.5002582]
[1772196789470,1.27347147,1963.2,1962.3,0.5002582]
[1772196789625,7.57394962,1963.8,1962.2,2.68865541]
[1772196789626,1.7389765,1963.6,1962.4,2.0632582]
[1772196789831,0.46580478,1963.5,1962.4,2.0632582]
[1772196790051,0.46580478,1963.5,1962.5,0.51186574]
[1772196790754,0.46580478,1963.5,1962.6,1.176]
[1772196790755,0.46432015,1963.4,1962.6,1.176]
[1772196791458,1.27336627,1963.3,1962.6,1.176]
[1772196791658,1.27336627,1963.3,1962.4,1.78578818]
[1772196791659,1.27336627,1963.3,1962.7,1.465]
[1772196792359,0.46432015,1963.2,1962.4,0.51186574]
[1772196792564,0.35601027,1963.1,1962.2,1.561]
[1772196793632,0.35668207,1962.8,1961.8,2.13132399]
[1772196793856,0.35668207,1962.8,1961.8,2.13133467]
[1772196794272,0.35668207,1962.8,1961.8,1.27433467]
[1772196794475,0.35668207,1962.8,1961.9,1.56]
[1772196794860,1.27356087,1963.0,1961.4,5.0983815]
[1772196794861,0.35798883,1962.5,1961.5,1.27448652]
[1772196795073,0.35798883,1962.5,1961.6,1.56]
[1772196795360,0.35798883,1962.5,1961.7,1.56]
[1772196795566,1.27395026,1962.4,1961.8,1.27433989]
[1772196795761,1.27395026,1962.4,1961.7,2.83335959]
[1772196795962,0.35863111,1962.2,1961.3,1.27462673]
[1772196796850,0.35863111,1962.2,1961.3,1.27464416]
[1772196797885,1.27414504,1962.1,1961.3,1.7865099]
[1772196798754,0.36051761,1962.4,1961.4,0.51186574]
[1772196798987,0.36051761,1962.4,1961.5,1.558]
[1772196799295,0.36051761,1962.4,1961.4,0.51186574]
[1772196799583,0.36051761,1962.2,1961.4,1.558]
[1772196799792,1.27414504,1962.1,1961.1,1.78662641]
[1772196799992,0.36113208,1962.0,1961.1,1.78662641]
[1772196800158,0.36113208,1962.0,1961.2,1.557]
[1772196800859,0.36213208,1962.0,1961.2,1.557]
[1772196801360,0.001,1962.0,1961.3,0.51186574]
[1772196801974,0.001,1962.0,1961.3,1.78650475]
[1772196803484,0.36394259,1962.0,1961.4,1.556]
[1772196803889,0.36353002,1961.9,1961.3,1.556]
[1772196804393,1.27433989,1961.8,1961.3,1.556]
[1772196804592,1.27433989,1961.8,1961.3,2.83065399]
[1772196805379,1.27433989,1961.8,1961.3,1.556]
[1772196805986,1.63785263,1961.9,1961.3,2.83065188]
[1772196807005,1.63785263,1961.9,1961.3,1.556]
[1772196807504,1.27432261,1961.9,1961.3,2.83065773]
[1772196808592,1.27432261,1961.9,1961.3,3.34252347]
[1772196809111,5.09802074,1962.0,1961.4,1.557]
[1772196809686,1.27520998,1962.0,1961.3,1.78652347]
[1772196809925,0.001,1962.0,1961.6,0.51186574]
[1772196811236,0.001,1962.0,1961.6,1.78628416]
[1772196812237,0.001,1962.0,1961.7,0.51186574]
[1772196812629,5.09528538,1962.6,1961.7,0.51186574]
[1772196812630,1.27382044,1962.6,1961.7,0.51186574]
[1772196813331,1.27382044,1962.6,1961.8,1.27433989]
[1772196813499,1.27382044,1962.6,1961.9,0.51186574]
[1772196813700,0.001,1962.5,1962.0,1.557]
[1772196813897,0.001,1962.5,1962.1,0.51186574]
[1772196814814,0.001,1962.5,1962.2,1.556]
[1772196815618,0.001,1962.5,1962.2,2.83006071]
[1772196816017,0.001,1962.5,1962.0,0.51186574]
[1772196816018,0.001,1962.5,1962.3,1.556]
[1772196816221,0.001,1962.5,1962.2,0.57071131]
[1772196816396,0.001,1962.5,1962.1,1.556]
[1772196819712,0.3740828,1962.5,1961.8,1.557]
[1772196821614,1.27395026,1962.4,1961.8,1.557]
[1772196821938,1.27395026,1962.4,1961.8,2.83133654]
[1772196822242,1.27395026,1962.4,1961.8,1.557]
[1772196824335,0.3758896,1962.0,1961.4,2.07327351]
[1772196824941,0.3758896,1962.0,1961.4,3.34786589]
[1772196825719,0.37679864,1962.3,1961.5,0.51717351]
[1772196826415,0.37779864,1962.5,1961.7,0.51717351]
[1772196827821,0.37768673,1962.3,1961.5,1.554]
[1772196828329,0.37768673,1962.3,1961.5,2.07117351]
[1772196828923,1.27408011,1962.2,1961.6,1.554]
[1772196829544,1.27408011,1962.2,1961.4,5.09948835]
[1772196829545,0.37811564,1962.1,1961.4,0.0011]
[1772196829750,0.37811564,1962.1,1961.5,1.554]
[1772196831240,1.65317121,1962.0,1961.4,0.0011]
[1772196831439,1.65317121,1962.0,1961.4,0.51827351]
[1772196831654,1.27420998,1962.0,1961.4,0.51827351]
[1772196834562,0.3806025,1962.0,1961.4,0.0011]
[1772196834931,0.3806025,1962.0,1961.4,1.5231]
[1772196835432,0.3806025,1962.0,1961.4,2.7976975]
[1772196836137,0.38140024,1962.6,1961.5,0.49818305]
[1772196836342,1.27488535,1962.5,1961.6,0.49818305]
[1772196836551,1.27488535,1962.5,1961.8,0.49818305]
[1772196836744,1.27488535,1962.5,1961.9,2.05018305]
[1772196838360,0.38216974,1962.4,1961.6,3.32360665]
[1772196838660,1.65618492,1962.3,1961.6,3.32360665]
[1772196838858,1.27399408,1962.4,1961.7,0.49818305]
[1772196840333,0.001,1962.5,1961.8,18.173013]
[1772196840546,0.001,1962.5,1962.0,1.27420998]
[1772196840755,0.001,1962.5,1962.1,1.551]
[1772196841458,0.001,1962.5,1961.9,0.49818305]
[1772196841758,0.38430205,1962.5,1961.8,1.551]
[1772196842166,0.001,1962.5,1961.9,0.49818305]
[1772196843072,0.001,1962.5,1962.0,1.77239303]
[1772196846038,0.38610451,1962.5,1961.9,1.552]
[1772196847572,0.38610451,1962.5,1961.8,0.49818305]
[1772196847759,0.38610451,1962.5,1961.9,1.552]
[1772196847959,1.66005264,1962.5,1962.0,0.49818305]
[1772196848175,0.001,1962.5,1962.0,0.49818305]
[1772196849368,1.27492427,1962.5,1962.0,0.49818305]
[1772196849559,0.001,1962.5,1962.0,0.49818305]
[1772196849967,0.001,1962.5,1962.1,1.7641894]